Workbook

Sheet Sheet1
A1: MULTIFAMILY
A2: Broker
A3: Google Doc | C3: Sales Price | D3: 725000
A4: Property | B4: 22 2nd Ave, Troy, NY 12180 | C4: Loan Amount | D4: =D7*D3 -> 543750
B5: Troy | C5: Down Payment | D5: =D3-D4 -> 181250
A6: Link | C6: Interest Rate | D6: 0.07
A7: # units | B7: 8 units | C7: Loan to Value | D7: 0.75
C8: Term Mo. | D8: 360
E9: RENT ROLL
B10: Use Annual Figures
B11: Gross Income | F11: Pro forma | G11: Exiting
B12: Apartment Units | C12: =SUM(F23) -> 113172 | E12: Unit 1 | F12: 1131 | G12: 1131 | H12: 1 | I12: bd
B13: Retail/Commercial Units | E13: Unit 2 | F13: 1150 | G13: 775 | H13: 1 | I13: bd
B14: Laundry | E14: Unit 3 | F14: 1150 | G14: 1200 | H14: 2 | I14: bd
B15: Gross Income | C15: =SUM(C12:C14) -> 113172 | E15: Unit 4 | F15: 1275 | G15: 1250 | H15: 2 | I15: bd
E16: Unit 5 | F16: 1150 | G16: 1050 | H16: 1 | I16: bd
E17: Unit 6 | F17: 1150 | G17: 1100 | H17: 1 | I17: bd
E18: Unit 7 | F18: 1275 | G18: 1100 | H18: 2 | I18: bd
E19: Unit 8 | F19: 1150 | G19: 1125 | H19: 1 | I19: bd
B21: Vacancy Factor
B22: Residential 5% | C22: =SUM(C15*0.05) -> 5658.6 | E22: Monthly | F22: =SUM(F12:F21) -> 9431
B23: Commercial 10% | E23: Yearly | F23: =SUM(F22*12) -> 113172
B25: Total | C25: =SUM(C22:C23) -> 5658.6
B26: Effective gross Income | C26: =SUM(C15-C25) -> 107513.4
B28: Expenses Annual Figures
B29: R/E Taxes | C29: 17374
B30: Insurance Premium | C30: 5679.04
B31: Water/Sewer | C31: 0
B32: Heat/Hot Water | C32: 0
B33: Common Electric | C33: 500
B34: Trash | D34: city pick up
B35: Maintenance | C35: =SUM(C26*0.05) -> 5375.67 | D35: (5% EGI)
B36: Management | C36: =SUM(C26*0.06) -> 6450.804 | D36: (6% EGI)
B37: Total Expenses | C37: =SUM(C29:C36) -> 35379.514
B39: Net Operating Income (NOI) | C39: =SUM(C26-C37) -> 72133.886
B40: Principle and Interest Pmt | C40: =-PMT(D6/12,D8,D4)*12 -> 43410.98781
B41: 2nd Mtg Pmt (if applicable) | C41: 0
B42: NOI/PI | C42: =SUM(C40:C41) -> 43410.98781
B44: Debt Service Coverage Ratio | C44: =SUM(C39/C42) -> 1.661650417
B46: Monthly mortgage payment | C46: =-PMT((D6/12),(D8),D4) -> 3617.582318
B47: Net income after mortgage | C47: =C39-C46*12 -> 28722.89819
B48: Return on investment (ROI) | C48: =C47/(D3-D4) -> 0.1584711624
B50: Cap rate | C50: =C39/D3 -> 0.09949501517
B52: Information contained on and in this document regarding this listing has been compiled from various sources
B53: all of which may not be completely accurate.
B54: All information that influences a decision to purchase a listed property should be independently verified by the purchaser.
